Cogmind - Beta 17 @@@ ROGUE MODE // 2026.07.20 @ 03:50:35 Player: Cereal Killer Result: Destroyed by Y-45 Defender with Heavy Assault Rifle Performance ------------- Evolutions (2) 1000 Regions Visited (9) 1800 Robots Destroyed (78) 390 Value Destroyed (3839) 3839 Prototype IDs (30) 600 Alien Tech Used (0) 0 Bonus (8099) 8099 TOTAL SCORE: 15728 Bonus ------- High Alert Combat Kills 551 Follower Combat Kills 255 Prayed to X0-1V1 5000 Major X0-1V1 Interference 1950 Entered Garrisons 400 Aligned with FarCom 300 Friendly Fire -357 Cogmind --------- Core Integrity 0/450 Matter 224/300 Energy 280/280 System Corruption 43% Temperature Cool (9) Movement Treading (240) Ox1 Location -8/Garrison Parts ------- > --- POWER (1) -------- Cooled Ion Engine > --- PROPULSION (3) --- Improved Treads > --- UTILITY (4) ------ Large Storage Unit X0-1V1's Piety Tracker > --- WEAPON (4) ------- Heavy Particle Gun > --- INVENTORY (15) --- Cooled Ion Engine Cooled Ion Engine Cooled Ion Engine Light Angular Momentum Engine Improved Flight Unit Improved Flight Unit Improved Flight Unit Experimental Sensor Array YOLO Cannon Enhanced Flamer Peak State ------------ > --- POWER ------------ Cooled Ion Engine > --- PROPULSION ------- Light Treads Light Treads Advanced Treads > --- UTILITY ---------- Improved Heat Sink Cooling System Large Storage Unit X0-1V1's Piety Tracker > --- WEAPON ----------- Heavy Particle Gun Heavy Particle Gun Flak Gun Rocket Launcher > --- INVENTORY -------- Cooled Ion Engine Cooled Ion Engine Cooled Ion Engine Improved Treads Improved Treads Improved Treads Improved Flight Unit Improved Flight Unit Improved Flight Unit Experimental Sensor Array Heavy Particle Gun YOLO Cannon Enhanced Flamer [Rating: 47] Favorites ----------- Power Ion Engine Engine Ion Engine Power Core Light Nuclear Core Propulsion Compact Wheel Treads Improved Treads Leg Aluminum Leg Wheel Compact Wheel Flight Unit Improved Flight Unit Utility X0-1V1's Piety Tracker Device X0-1V1's Piety Tracker Storage Large Storage Unit Protection Improved Light Armor Plating Weapon Particle Cannon Energy Gun Heavy Particle Gun Energy Cannon Particle Cannon Ballistic Gun Assault Rifle Launcher Grenade Launcher Build | -11 -10 -10 -10 -9 -8 -8 -8 -8 -8 ------- Run | Yrd Mat Min Exi Min Mat Gar Mat Sto Gar Slots Evolved 4 | . . . . . 4 . . . . Power . | . . . . . . . . . . Propulsion . | . . . . . . . . . . Utility 3 | . . . . . 3 . . . . Weapon 1 | . . . . . 1 . . . . Parts Attached 43 | 4 9 . 3 . 4 9 1 9 4 Power 4 | 1 . . . . . 2 . 1 . Engine 3 | 1 . . . . . 1 . 1 . Core 1 | . . . . . . 1 . . . Reactor . | . . . . . . . . . . Propulsion 14 | 2 2 . 2 . . 1 1 3 3 Treads 7 | . . . 1 . . . 1 2 3 Leg 2 | . 2 . . . . . . . . Wheel 4 | 2 . . 1 . . 1 . . . Hover . | . . . . . . . . . . Flight 1 | . . . . . . . . 1 . Utility 11 | 1 2 . 1 . 3 2 . 2 . Device 5 | . 1 . . . 2 . . 2 . Storage 2 | 1 . . 1 . . . . . . Processor . | . . . . . . . . . . Hackware . | . . . . . . . . . . Protection 4 | . 1 . . . 1 2 . . . Artifact . | . . . . . . . . . . Weapon 14 | . 5 . . . 1 4 . 3 1 Energy Gun 4 | . . . . . . 1 . 2 1 Energy Cannon 2 | . 1 . . . 1 . . . . Ballistic Gun 5 | . 2 . . . . 3 . . . Ballistic Cannon . | . . . . . . . . . . Launcher 3 | . 2 . . . . . . 1 . Special Weapon . | . . . . . . . . . . Impact Weapon . | . . . . . . . . . . Slashing Weapon . | . . . . . . . . . . Piercing Weapon . | . . . . . . . . . . Special Melee Weapon . | . . . . . . . . . . Unidentified Prototypes 4 | . 1 . . . 1 . . 2 . Parts Lost 19 | . . . . . . 3 3 3 10 Power 1 | . . . . . . 1 . . . Propulsion 6 | . . . . . . . 1 . 5 Utility 4 | . . . . . . 1 . 1 2 Weapon 8 | . . . . . . 1 2 2 3 Highest Loss Streak 6 | . . . . . . 2 2 1 6 To Critical Strikes . | . . . . . . . . . . Average Backups 11 | 4 7 8 7 12 11 12 12 11 12 Power . | . . . . . . . . 2 4 Propulsion 2 | 2 3 3 2 2 2 1 1 3 5 Utility 4 | . . 2 2 5 5 7 8 3 1 Weapon 3 | 1 2 3 3 4 4 3 3 3 2 Tool/Special . | . . . . . . . . . . Unused Backups 22 | . 4 1 1 . . 1 1 6 8 Power 5 | . 1 . . . . . . . 4 Propulsion 5 | . 2 . 1 . . . . . 2 Utility 9 | . . 1 . . . 1 1 6 . Weapon 3 | . 1 . . . . . . . 2 Tool/Special . | . . . . . . . . . . Average Slot Usage (%) 92 | . 91 100 100 100 83 94 79 81 85 Engine 8 | . 14 14 14 14 8 3 8 8 8 Core 1 | . . . . . . 4 . . . Treads 7 | . . . 2 14 8 5 2 17 24 Leg 4 | . 14 28 23 . . . . 1 . Wheel 6 | . 13 . 2 14 8 7 4 . . Device 14 | . 1 14 14 14 16 16 16 18 21 Storage 9 | . 14 14 14 14 8 8 8 8 8 Protection 6 | . 5 . . . 8 12 8 1 . Energy Gun 2 | . . . . . . . . 8 19 Energy Cannon 10 | . 4 14 14 12 15 15 9 . . Ballistic Gun 11 | . 8 14 14 14 8 11 20 8 . Launcher 4 | . 14 . . 1 . 5 . 6 4 Peak Build Rating 47 | 4 21 22 24 26 39 46 46 47 43 Average Rating 32 | 3 8 21 22 25 31 39 40 37 41 On Entrance 25 | . 4 21 22 24 26 32 46 33 43 Avg Prop Armor Cover (%) 8 | . . . 12 12 8 6 . 4 . Naked Turns . | . . . . . . . . . . Heaviest Build 54 | 10 17 17 32 32 43 54 54 47 42 Greatest Support 68 | 32 32 20 20 16 16 28 28 62 68 Greatest Overweight (x) 3 | . . . 1 1 2 3 2 2 1 Average Overweight (x) 1 | . . . . 1 2 2 1 . . Largest Inventory Capacity 15 | 8 8 8 15 15 15 15 15 15 15 Average Capacity 13 | 7 8 8 9 15 15 15 15 15 15 Most Carried 15 | 8 8 8 10 15 15 15 15 15 15 Average Carried 12 | 5 7 8 8 14 13 14 14 12 13 Final Capacity 15 | 8 8 8 15 15 15 15 15 15 15 Final Carried 15 | 8 8 8 10 15 15 15 14 15 11 Class Distribution -------------------- 34% | Mutant 22% | Tank 21% | Scavenger-Skirmisher 19% | Skirmisher Dominant Class ---------------- Mutant | -10/Materials Mutant | -10/Mines Mutant | -10/Exiles Mutant | -9/Mines Skirmisher | -8/Materials Tank | -8/Garrison Scavenger-Skirmisher | -8/Materials Skirmisher | -8/Storage Skirmisher | -8/Garrison Resources | -11 -10 -10 -10 -9 -8 -8 -8 -8 -8 ----------- Run | Yrd Mat Min Exi Min Mat Gar Mat Sto Gar Matter Collected 2157 | 215 82 . . 230 47 1048 162 373 . Remotely . | . . . . . . . . . . Salvage Created 2811 | . 84 . . 181 . 1227 189 1034 96 Parts 165 | . 1 . . 18 . 73 10 56 7 Haulers Intercepted 4 | . 2 . . . . . . 2 . Recyclers Shooed 1 | . . . . . . . . 1 . Parts Field Recycled . | . . . . . . . . . . Retrieved Matter . | . . . . . . . . . . Parts Self-Destructed . | . . . . . . . . . . Prevented . | . . . . . . . . . . Parts Restored . | . . . . . . . . . . Kills | -11 -10 -10 -10 -9 -8 -8 -8 -8 -8 ------- Run | Yrd Mat Min Exi Min Mat Gar Mat Sto Gar Combat Hostiles Destroyed 66 | . . . . 7 . 27 6 23 3 Guns 23 | . . . . 1 . 10 3 6 3 Cannons 17 | . . . . 1 . 12 3 1 . AOE 25 | . . . . 4 . 5 . 16 . Classes Destroyed 12 | . 2 . . 2 . 4 . 3 1 Worker 2 | . . . . . . . . 2 . Hauler 4 | . 2 . . . . . . 2 . Recycler 1 | . . . . . . . . 1 . Watcher 2 | . 2 . . . . . . . . Swarmer 18 | . . . . 4 . 8 3 3 . Cutter 2 | . . . . . . 2 . . . Grunt 22 | . . . . . . 7 3 12 . Brawler 7 | . . . . . . 4 . 3 . Duelist 3 | . . . . . . 1 . 2 . Protector 1 | . . . . . . . . 1 . Sentry 11 | . . . . 3 . 6 . 2 . Programmer 3 | . . . . . . . . . 3 Thug 1 | . . . . . . . . 1 . Savage 1 | . . . . . . 1 . . . Best Kill Streak 8 | . 2 . . 4 . 6 6 8 2 Combat Bots Only 7 | . . . . 4 . 6 6 7 2 Max Kills in Single Turn 7 | . 2 . . 3 . 3 1 7 1 Gunslinging . | . . . . . . . . . . Exploded 5 | . . . . 3 . 3 . 5 . Melee . | . . . . . . . . . . Uniques/NPCs Destroyed . | . . . . . . . . . . Combat | -11 -10 -10 -10 -9 -8 -8 -8 -8 -8 -------- Run | Yrd Mat Min Exi Min Mat Gar Mat Sto Gar Hostile Shots Fired 368 | . . . . 19 . 117 53 42 137 Missed 111 | . . . . 7 . 33 13 10 48 Hits 257 | . . . . 12 . 84 40 32 89 Melee 5 | . . . . . . 5 . . . Projectile 252 | . . . . 12 . 79 40 32 89 AOE 2 | . . . . . . 2 . . . Critical Strikes 11 | . . . . . . 4 2 . 5 Part Disruptions 2 | . . . . . . . . . 2 Damage Taken 3665 | . 85 . . 158 16 1008 541 495 1362 Core 559 | . 10 . . 62 8 128 41 67 243 Absorbed by Shields 14 | . . . . . . 14 . . . Core Remaining (%) 85 | 100 . . . 71 . . . . . Volleys Fired 159 | . 7 . . 9 . 86 14 23 20 Largest 5 | . 2 . . 2 . 5 4 4 3 Hottest 247 | . 60 . . 88 . 247 142 171 165 Shots Fired 436 | . 12 . . 15 . 269 41 53 46 Gun 235 | . 2 . . 6 . 120 29 38 40 Cannon 152 | . . . . 6 . 134 12 . . Launcher 49 | . 10 . . 3 . 15 . 15 6 Special . | . . . . . . . . . . Kinetic 170 | . 2 . . 6 . 115 29 18 . Thermal 217 | . . . . 6 . 139 12 20 40 Explosive 49 | . 10 . . 3 . 15 . 15 6 Electromagnetic . | . . . . . . . . . . Robot Hit Streak 13 | . 2 . . 8 . 13 4 5 3 Robot Miss Streak 8 | . 5 . . 1 . 5 7 8 4 Penetration Max . | . . . . . . . . . . Secondary Targets 1 | . . . . . . . . 1 . Max Gunslinging Chain 1 | . . . . . . . . 1 . Shots Hit Robots 189 | . 3 . . 12 . 117 23 19 15 Core Hits 150 | . 9 . . 7 . 53 13 59 9 Critical Kills 1 | . . . . 1 . . . . . Critical Parts Destroyed . | . . . . . . . . . . Critical Strikes 2 | . . . . 1 . . . . 1 Burn 1 | . . . . . . . . . 1 Meltdown 1 | . . . . 1 . . . . . Melee Attacks . | . . . . . . . . . . Impact . | . . . . . . . . . . Slashing . | . . . . . . . . . . Piercing . | . . . . . . . . . . Sneak Attacks . | . . . . . . . . . . Combat Hostiles . | . . . . . . . . . . Follow-up Attacks . | . . . . . . . . . . Damage Inflicted 6122 | . 282 . . 395 . 2285 368 2265 527 Guns 1653 | . 13 . . 55 . 769 206 315 295 Cannons 1555 | . . . . 101 . 1231 162 61 . Explosions 2914 | . 269 . . 239 . 285 . 1889 232 Melee . | . . . . . . . . . . Ramming . | . . . . . . . . . . Kinetic 1234 | . 13 . . 55 . 737 206 223 . Thermal 1974 | . . . . 101 . 1263 162 153 295 Explosive 2914 | . 269 . . 239 . 285 . 1889 232 Electromagnetic . | . . . . . . . . . . Impact . | . . . . . . . . . . Slashing . | . . . . . . . . . . Piercing . | . . . . . . . . . . Highest Corruption 43 | . . . . . . 40 40 40 43 Average Corruption 33 | . . . . . . 22 40 40 41 Corruption Purged . | . . . . . . . . . . Corruption Blocked . | . . . . . . . . . . Effects 114 | . . . . . . 42 16 45 11 Message Errors 17 | . . . . . . 9 1 7 . Matter Fused 17 | . . . . . . 7 3 7 . Heat Flow Errors 10 | . . . . . . 7 . 2 1 Energy Discharges 13 | . . . . . . 1 4 6 2 Parts Rejected 1 | . . . . . . . . . 1 Data Loss (minor) 9 | . . . . . . 5 . 4 . Data Loss (major) 3 | . . . . . . 1 . 2 . Misfires 8 | . . . . . . 4 . 2 2 Alerts 1 | . . . . . . . . 1 . Misdirections 4 | . . . . . . . . 3 1 Weapon Failures 31 | . . . . . . 8 8 11 4 Overload Shots . | . . . . . . . . . . Overflow Damage 81 | . 30 . . 6 . 2 . 43 . Projectiles 2 | . . . . . . 2 . . . Explosions 79 | . 30 . . 6 . . . 43 . Melee . | . . . . . . . . . . Knockbacks . | . . . . . . . . . . Impact . | . . . . . . . . . . Kinetic . | . . . . . . . . . . Secondary . | . . . . . . . . . . Self-Inflicted Damage 156 | . 87 . . 10 . 59 . . . Shots 8 | . 3 . . 2 . 3 . . . Rammed . | . . . . . . . . . . Targets Rammed . | . . . . . . . . . . Kicked . | . . . . . . . . . . Crushed . | . . . . . . . . . . Highest Temperature 456 | . . . . 90 . 456 25 133 96 Average Temperature 85 | . . . . 39 . 97 8 51 37 Received Heat Transfer 1117 | . . . . 36 . 277 300 225 279 Effects 4 | . . . . . . 4 . . . Shutdowns 1 | . . . . . . 1 . . . Damage (major) 3 | . . . . . . 3 . . . Siege Activations . | . . . . . . . . . . Martial Activations . | . . . . . . . . . . Shielding Activations . | . . . . . . . . . . Robots Disrupted . | . . . . . . . . . . Combat Hostiles . | . . . . . . . . . . Robots Corrupted . | . . . . . . . . . . Combat Hostiles . | . . . . . . . . . . Parts Fried . | . . . . . . . . . . Impact Corruptions . | . . . . . . . . . . Robots Melted 1 | . . . . 1 . . . . . Combat Hostiles 1 | . . . . 1 . . . . . Parts Melted 8 | . . . . 3 . 4 . . 1 Heat Transferred 3663 | . . . . 185 . 2294 296 296 592 Parts Sabotaged . | . . . . . . . . . . Parts Stolen . | . . . . . . . . . . Parts Stripped . | . . . . . . . . . . Power Chain Reactions . | . . . . . . . . . . Alert | -11 -10 -10 -10 -9 -8 -8 -8 -8 -8 ------- Run | Yrd Mat Min Exi Min Mat Gar Mat Sto Gar Maximum Alert Level 4 | . . . . . . 4 3 3 2 Low Security (%) 34 | 100 100 100 . 100 100 14 . . . Level 1 22 | . . . . . . 18 . 75 . Level 2 24 | . . . . . . 28 96 15 100 Level 3 12 | . . . . . . 24 3 8 . Level 4 6 | . . . . . . 15 . . . Level 5 . | . . . . . . . . . . High Security . | . . . . . . . . . . Max Security . | . . . . . . . . . . Peak Influence 1281 | . 57 . . 129 7 1281 706 816 696 Initial 624 | . . . . . 7 . 624 276 528 Average 418 | . 25 . . 71 1 624 660 386 624 Influence Increases 2876 | . 109 . . 169 . 1391 142 857 208 Destroy 0b10 Robot/C 1480 | . . . . 140 . 660 120 500 60 Destroy 0b10 Robot/NC 55 | . 20 . . . . 5 . 30 . Destroy Leader 162 | . 8 . . 10 . 30 20 84 10 Allied During Kill 68 | . . . . . . 29 . 39 . Successful Hack 27 | . 5 . . . . 14 . 8 . Disable Machine 120 | . 30 . . . . 30 . 30 30 Anti-Garrison Action 550 | . . . . . . 500 . . 50 Destroy Structure 339 | . 46 . . 19 . 123 2 136 13 Lose Combat Pursuer 75 | . . . . . . . . 30 45 Influence Decreases 2240 | . 109 . . 150 19 110 767 700 385 Entered New Map 1334 | . . . . . 12 . 657 380 285 Time Decay 616 | . 109 . . 150 7 . 80 270 . Lost Part 190 | . . . . . . 30 30 30 100 Lost Ally 100 | . . . . . . 80 . 20 . Squads Dispatched 7 | . 1 . . . . . 1 5 . Investigation 2 | . . . . . . . . 2 . Extermination . | . . . . . . . . . . Reinforcement 3 | . 1 . . . . . 1 1 . Assault 2 | . . . . . . . . 2 . Garrison . | . . . . . . . . . . Intercept . | . . . . . . . . . . Searches Triggered . | . . . . . . . . . . Construction Impeded . | . . . . . . . . . . Haulers Reinforced . | . . . . . . . . . . Active Scanning Responses . | . . . . . . . . . . Cargo Convoy Interrupts . | . . . . . . . . . . Stealth | -11 -10 -10 -10 -9 -8 -8 -8 -8 -8 --------- Run | Yrd Mat Min Exi Min Mat Gar Mat Sto Gar Distress Signals 4 | . 1 . . . . . 1 2 . Communications Jammed . | . . . . . . . . . . Distress Signals . | . . . . . . . . . . Times Spotted 106 | . 2 . . 7 . 34 15 39 9 Peak Tracking Total 9 | . 2 . . 4 . 6 7 6 9 Tactical Retreats 2 | . . . . . . . . 1 1 Traps | -11 -10 -10 -10 -9 -8 -8 -8 -8 -8 ------- Run | Yrd Mat Min Exi Min Mat Gar Mat Sto Gar Traps Triggered 7 | . . . . . . 6 . . 1 Indirectly . | . . . . . . . . . . Trap Hack Attempts . | . . . . . . . . . . Triggered . | . . . . . . . . . . Disarmed . | . . . . . . . . . . Reprogrammed . | . . . . . . . . . . Reused . | . . . . . . . . . . Traps Extracted . | . . . . . . . . . . Installed . | . . . . . . . . . . Triggered . | . . . . . . . . . . Machines | -11 -10 -10 -10 -9 -8 -8 -8 -8 -8 ---------- Run | Yrd Mat Min Exi Min Mat Gar Mat Sto Gar Machines Disabled 15 | . 2 . . . . 8 . 2 3 Max in Single Turn 1 | . 1 . . . . 1 . 1 1 Garrison Relay 7 | . . . . . . 6 . . 1 Machines Repaired . | . . . . . . . . . . Machines Dismantled . | . . . . . . . . . . Machines Sabotaged . | . . . . . . . . . . Overloaded Fab Kills . | . . . . . . . . . . Hacking | -11 -10 -10 -10 -9 -8 -8 -8 -8 -8 --------- Run | Yrd Mat Min Exi Min Mat Gar Mat Sto Gar Machines Accessed 15 | . 2 . 2 . 2 3 1 5 . Terminals 10 | . 2 . . . 1 3 . 4 . Fabricators . | . . . . . . . . . . Repair Stations . | . . . . . . . . . . Recycling Units 1 | . . . . . . . 1 . . Scanalyzers . | . . . . . . . . . . Garrison Access 2 | . . . . . 1 . . 1 . Total Hacks 32 | . 6 . 6 . 3 5 1 11 . Successful 16 | . 4 . 6 . 2 1 1 2 . Failed 16 | . 2 . . . 1 4 . 9 . Catastrophic 7 | . . . . . . 2 . 5 . Database Lockouts . | . . . . . . . . . . Manual 6 | . 4 . 1 . . . 1 . . Terminals 22 | . 6 . . . 2 5 . 9 . Fabricators . | . . . . . . . . . . Repair Stations . | . . . . . . . . . . Recycling Units 1 | . . . . . . . 1 . . Scanalyzers . | . . . . . . . . . . Garrison Access 3 | . . . . . 1 . . 2 . Terminal Hacks 12 | . 3 . 6 . 1 1 . 1 . Record 5 | . . . 5 . . . . . . Robot Analysis 1 | . . . . . 1 . . . . Prototype ID Bank 2 | . 2 . . . . . . . . Open Door 1 | . . . . . . . . 1 . Emergency Access Points 1 | . . . . . . 1 . . . Hauler Manifests 1 | . 1 . . . . . . . . Proto ID Catalog 1 | . . . 1 . . . . . . Fabricator Hacks . | . . . . . . . . . . Repair Station Hacks . | . . . . . . . . . . Recycling Unit Hacks . | . . . . . . . . . . Scanalyzer . | . . . . . . . . . . Garrison Access Hacks 2 | . . . . . 1 . . 1 . Unlock Access 2 | . . . . . 1 . . 1 . Unauthorized Hacks 2 | . 1 . . . . . 1 . . Terminals 1 | . 1 . . . . . . . . Botnet 1 | . 1 . . . . . . . . Fabricators . | . . . . . . . . . . Repair Stations . | . . . . . . . . . . Recycling Units 1 | . . . . . . . 1 . . Recyclers 1 | . . . . . . . 1 . . Scanalyzers . | . . . . . . . . . . Garrison Access . | . . . . . . . . . . Data Cores Recovered . | . . . . . . . . . . Used . | . . . . . . . . . . Hacking Detections 10 | . 2 . . . 1 3 . 4 . Full Trace Events 4 | . . . . . . 2 . 2 . Feedback Events . | . . . . . . . . . . Feedback Blocked . | . . . . . . . . . . Robot Schematics Acquired . | . . . . . . . . . . Robots Built . | . . . . . . . . . . Authchips . | . . . . . . . . . . Time . | . . . . . . . . . . Total Robot Build Rating . | . . . . . . . . . . Part Schematics Acquired . | . . . . . . . . . . Parts Built . | . . . . . . . . . . Authchips . | . . . . . . . . . . Time . | . . . . . . . . . . Total Part Build Rating . | . . . . . . . . . . Part Studies Acquired . | . . . . . . . . . . Parts Repaired . | . . . . . . . . . . Time . | . . . . . . . . . . Parts Recycled . | . . . . . . . . . . Recycled Matter . | . . . . . . . . . . Retrieved Matter . | . . . . . . . . . . Retrieved Components . | . . . . . . . . . . Parts Scanalyzed . | . . . . . . . . . . Part Schematics Acquired . | . . . . . . . . . . Parts Damaged . | . . . . . . . . . . Bothacking | -11 -10 -10 -10 -9 -8 -8 -8 -8 -8 ------------ Run | Yrd Mat Min Exi Min Mat Gar Mat Sto Gar Used RIF Installer . | . . . . . . . . . . Robots Hacked . | . . . . . . . . . . Non-combat . | . . . . . . . . . . Combat . | . . . . . . . . . . Robot Hacks Applied . | . . . . . . . . . . Relay Couplers Released 22 | . . . . . . 19 . . 3 Machine Destruction 22 | . . . . . . 19 . . 3 Fabnet Peak Effective % . | . . . . . . . . . . Robots Rewired 2 | . . . . . . 2 . . . Allies Hacked . | . . . . . . . . . . Hacks Repelled . | . . . . . . . . . . Allies | -11 -10 -10 -10 -9 -8 -8 -8 -8 -8 -------- Run | Yrd Mat Min Exi Min Mat Gar Mat Sto Gar Total Allies 11 | . . . . 3 . 4 . 4 . Largest Group 3 | . . . . 3 3 3 . 3 . Highest-Rated Group 78 | . . . . 40 40 66 . 78 . Highest-Rated Ally 31 | . . . . 16 16 31 . 31 . Initial Warlord ECA Mod 10 | . . . . . . . 10 10 10 Total Orders . | . . . . . . . . . . Ally Attacks 62 | . . . . . . 24 . 38 . Total Damage 824 | . . . . . . 339 . 485 . Kills 10 | . . . . . . 6 . 4 . Allies Corrupted . | . . . . . . . . . . Allies Melted . | . . . . . . . . . . X0-1V1 Amusement Gains 29 | . 14 . . . 5 . . 10 . Good Acts 17 | . . . . 1 2 9 1 2 2 Bad Acts 23 | . . . . 1 . 18 3 1 . Intel | -11 -10 -10 -10 -9 -8 -8 -8 -8 -8 ------- Run | Yrd Mat Min Exi Min Mat Gar Mat Sto Gar Active Infowar (turns) 1 | . . . . . 1 . . . . Sensors 1 | . . . . . 1 . . . . Robot Analysis Total 1 | . . . . . 1 . . . . Derelict Logs Recovered 1 | . . . . 1 . . . . . Drone Launches . | . . . . . . . . . . Drone Recoveries . | . . . . . . . . . . Exploration | -11 -10 -10 -10 -9 -8 -8 -8 -8 -8 ------------- Run | Yrd Mat Min Exi Min Mat Gar Mat Sto Gar Turns Passed 3588 | 68 282 86 407 362 90 1419 164 595 115 Spaces Moved 2101 | 55 214 71 335 254 62 798 55 227 30 Core 6 | 6 . . . . . . . . . Treads 270 | . . . . . . . 13 227 30 Legs 454 | . 108 71 275 . . . . . . Wheels 1371 | 49 106 . 60 254 62 798 42 . . Hover . | . . . . . . . . . . Flight . | . . . . . . . . . . Fastest Speed 50 | 50 100 120 115 115 130 115 115 155 155 Average Speed 134 | 94 110 120 119 115 130 132 163 215 158 Slowest Speed 320 | 100 120 120 120 115 130 145 320 320 240 Overloaded Moves . | . . . . . . . . . . Propulsion Burnouts . | . . . . . . . . . . Robots Hopped . | . . . . . . . . . . Potential Cave-ins . | . . . . . . . . . . Cave-ins Triggered . | . . . . . . . . . . Exploration Rate (%) 34 | 3 32 23 71 50 9 82 8 44 21 Regions Visited 9 Branch Regions 4 Pre-discovered Areas 1 | . . . 1 . . . . . . Known Exits Taken 2 | . . . . . 1 . . 1 . Unknown Exits Taken 6 | 1 1 1 1 1 . . 1 . . Scrap Searched 1 | . . . . 1 . . . . . Spaces Dug . | . . . . . . . . . . Terrain Destroyed 301 | . 43 . . 26 . 64 . 150 18 Melee . | . . . . . . . . . . Projectile 3 | . . . . . . . . . 3 AOE 298 | . 43 . . 26 . 64 . 150 15 Terrain Rammed . | . . . . . . . . . . Walls Destroyed . | . . . . . . . . . . Machines Disabled . | . . . . . . . . . . Actions | -11 -10 -10 -10 -9 -8 -8 -8 -8 -8 --------- Run | Yrd Mat Min Exi Min Mat Gar Mat Sto Gar Total 2536 | 70 250 72 343 308 72 978 99 288 56 Wait 85 | . 4 . . 40 3 10 28 . . Move 2092 | 54 213 70 334 253 61 797 54 226 30 Hop . | . . . . . . . . . . Pick Up 57 | 12 8 1 3 4 3 6 1 18 1 Fast Attach 11 | . 3 . . . . 7 . 1 . Attach 31 | 4 3 . . . 4 6 1 8 5 Detach 3 | . 1 . . . 1 1 . . . Swap 12 | . 3 . 3 2 . 2 . 2 . Drop 29 | . 8 1 3 . . 6 1 10 . Fire 159 | . 7 . . 9 . 86 14 23 20 Melee . | . . . . . . . . . . Ram . | . . . . . . . . . . Kick . | . . . . . . . . . . Crush . | . . . . . . . . . . Escape Stasis 40 | . . . . . . 40 . . . Rewire 17 | . . . . . . 17 . . . Trap . | . . . . . . . . . . Miscellaneous . | . . . . . . . . . . Route ------- -11/Scrapyard -10/Materials (discovered 2 exits: [*Min] / [*Sub]) -10/Mines -10/Exiles -9/Mines -8/Materials -8/Garrison (discovered 3 exits: *Mat x3) -8/Materials -8/Storage (discovered 2 exits: [*Fac] / Gar) -8/Garrison (discovered 1 exit: [*Rec]) History --------- Turn | Location | Event 27 | -11/Scrapyard | Discovered new exit (range 14) 69 | -11/Scrapyard | Entered Materials 257 | -10/Materials | Discovered new exit (range 12) 304 | -10/Materials | Discovered new exit (range 10) 309 | -10/Materials | Build established: Mutant 315 | -10/Materials | Prayed at D.C.S.S. Altar Unit 351 | -10/Materials | Entered Mines 380 | -10/Mines | Found a damaged Exp. Sensor Array with a note attached 383 | -10/Mines | Found Prototype Device 432 | -10/Mines | Deemed a non-threat by the Exiles lab entrance 432 | -10/Mines | Discovered new exit (range 5) 437 | -10/Mines | Entered Exiles 467 | -10/Exiles | Met 8R-AWN 484 | -10/Exiles | Met EX-HEX 533 | -10/Exiles | Met EX-DEC 541 | -10/Exiles | Learned location of Zion (-7) 568 | -10/Exiles | Met EX-BIN 583 | -10/Exiles | Aligned with FarCom system 584 | -10/Exiles | Given EX-Vault access code 613 | -10/Exiles | Opened EX-Vault 621 | -10/Exiles | Found YOLO Cannon 647 | -10/Exiles | Warned to stay clear of 0b10 Research branches 830 | -10/Exiles | Discovered new exit (range 14) 844 | -10/Exiles | Left Exiles lab with YOLO Cannon 844 | -10/Exiles | Entered Mines 859 | -9/Mines | A weapon hastily lodged in a ceiling crevice suddenly fell to the ground 887 | -9/Mines | Found a Scrap Suit stashed away for nefarious purposes 889 | -9/Mines | Found Scrap Suit 894 | -9/Mines | Learned Materials stockpile data 1017 | -9/Mines | Discovered new exit (range 6) 1058 | -9/Mines | Assisted by bots powering up and referring to "LRC-V3" 1206 | -9/Mines | Entered Materials 1206 | -8/Materials | Accompanied by 3 allies 1206 | -8/Materials | Evolved 4 slots: Utility x3, Weapon x1 1209 | -8/Materials | Identified Exp. Sensor Array 1211 | -8/Materials | Weapon slot count permanently improved by X0-1V1 (+1) 1230 | -8/Materials | Identified exit to Garrison 1296 | -8/Materials | Entered Garrison 1296 | -8/Garrison | Accompanied by 2 allies 1317 | -8/Garrison | Triggered checkpoint 1344 | -8/Garrison | Garrison Relay disabled 1482 | -8/Garrison | Garrison Relay disabled 1621 | -8/Garrison | Build established: Tank 1664 | -8/Garrison | Energy generation permanently improved by X0-1V1 (+10; -100 max core) 1746 | -8/Garrison | Discovered new exit (range 8) 1805 | -8/Garrison | Garrison Relay disabled 1878 | -8/Garrison | X0-1V1 activates XOMVISION 2070 | -8/Garrison | Identified exit to Materials 2070 | -8/Garrison | X0-1V1 revealed exit location to -8/Materials 2083 | -8/Garrison | X0-1V1 sent you into danger 2101 | -8/Garrison | X0-1V1 mutated your Utility slot to Weapon slot 2103 | -8/Garrison | System corruption reached 10% 2107 | -8/Garrison | X0-1V1 sent hostile Y-45 Defender (x2) 2116 | -8/Garrison | Rescued a captive Derelict 2119 | -8/Garrison | Rescued a captive Derelict 2150 | -8/Garrison | Triggered checkpoint 2176 | -8/Garrison | Garrison Relay disabled 2212 | -8/Garrison | Triggered checkpoint 2435 | -8/Garrison | Discovered exit to Materials (range 13) 2510 | -8/Garrison | Garrison Relay disabled 2582 | -8/Garrison | Triggered checkpoint 2594 | -8/Garrison | X0-1V1 upgraded hostiles (x1) 2644 | -8/Garrison | Garrison Relay disabled 2655 | -8/Garrison | System corruption reached 30% 2715 | -8/Garrison | Entered Materials 2715 | -8/Materials | Discovered new exit (range 15) 2730 | -8/Materials | X0-1V1 mutated your Weapon slot to Propulsion slot 2780 | -8/Materials | Build established: Scavenger-Skirmisher 2857 | -8/Materials | X0-1V1 sent hostile G-34 Mercenary (x4) 2879 | -8/Materials | Entered Storage 3271 | -8/Storage | Met a pair of Derelict thieves 3323 | -8/Storage | X0-1V1 turns hostiles against one another 3356 | -8/Storage | Destroyed 7 combat bots 3366 | -8/Storage | Lost 3 allies 3413 | -8/Storage | Discovered new exit (range 16) 3468 | -8/Storage | Identified exit to Garrison 3474 | -8/Storage | Entered Garrison 3501 | -8/Garrison | Triggered checkpoint 3505 | -8/Garrison | Discovered new exit (range 9) 3505 | -8/Garrison | X0-1V1 whisked you away to safety 3529 | -8/Garrison | Core integrity fell below 50% 3565 | -8/Garrison | Lost 4 parts (2n1u1w) 3577 | -8/Garrison | Core integrity fell below 20% 3589 | -8/Garrison | Destroyed by Y-45 Defender with Heavy Assault Rifle Last Messages --------------- 03574_ Critical hit (Burn: +37). 03577_ X0-1V1 briefly opens a portal to the matter dimension. 03579_ System corrupted: FCS attempts to trigger Hvy. Particle Gun. 03579_ System corrupted: Hvy. Particle Gun misfires. 03579_ Penetrated by Slug. 03579_ Hvy. Particle Gun destroyed. 03582_ Penetrated by Slug. 03582_ Y-45 Defender springs to life. 03582_ Adv. Treads destroyed. 03583_ Y-45 Defender springs to life. 03583_ Imp. Treads destroyed. 03585_ Hvy. Particle Gun destroyed. 03585_ Critical hit (Burn: +37). 03586_ Imp. Treads destroyed. 03586_ Cooling System destroyed. 03588_ Penetrated by Slug. 03589_ X0-1V1 giggles madly! Map ----- +----------------------------------------------------+ | ???????????????????????????????????????????????? | | ???????????????????????????????????????????????? | | ???????????????????????????????????????????????? | | ???????????????????????????????????????????????? | | ???????????????????????????????????????????????? | | ???????????????????????????????????????????????? | | ???????????????????????????????????????????????? | | ???????????????????????????????????????????????? | | ???????????????????????????????????????????????? | | ???????????????????????????????????????????????? | | ???????????????????????? ?????????????????????? | | ???????????????????????? #????????????????????? | | ???????????????????###?? #????????????????????? | | ?????????????????### ### #????????????????????? | | ?????????????????# # ## #????????????????????? | | ???????????????### ## ##########???????????? | | ???????????????# h #???????????? | | ???????????????# #???????????? | | ???????????????# [% #???????????? | | ???????????????# *%! ##??????????? | | ???????????????# ! "????? | | ???????????????# ###"""""#???? | | ???????????????# #???????????? | | ???????????????# | #???????????? | | ???????????????# *%= Y#??????????? | | ???????????????# @ < Y#??????????? | | ???????????????# Y#??????????? | | ????????######## ##??????????? | | ????????#" ##% #???????????? | | ????????#" #???????????? | | ????????#"" ## #???????????? | | ????????######## #???????????? | | ???????????????# #???????????? | | ???????????????# Y #???????????? | | ???????????????# Y #???????????? | | ???????????????###+##### #########????????????? | | ??????????sss????? #???? #????????????????????? | | ??????????????????+#???? #????????????????????? | | ???????????????????????? ????????????????????? | | ???????????????????????? ????????????????????? | | ????????????????????????##?????????????????????? | | ???????????????????????????????????????????????? | | ???????????????????????????????????????????????? | | ???????????????????????????????????????????????? | | ???????????????????????????????????????????????? | | ???????????????????????????????????????????????? | | ???????????????????????????????????????????????? | | ???????????????????????????????????????????????? | | ???????????????????????????????????????????????? | | ???????????????????????????????????????????????? | +----------------------------------------------------+ Best States ------------- Heat Dissipation 67 Energy Generation 24 Energy Capacity 1250 Matter Stores 700 Matter Capacity 700 Sight Range 16 Robot Scan Range 20 Terrain Scan Density 10 Armor Coverage 300 Propulsion Shielding 33 Evasion (%) 55 Recoil Reduction 3 Item Schematics ----------------- None Robot Schematics ------------------ None Fabricated ------------ Nothing Repaired ---------- Nothing Studied --------- None Alien Tech Used ----------------- None Achievements -------------- My Bad Challenges ------------ None Game ------ Seed DisposableThermalMinigun Manual? 0 Play Time 00:36:19 Cumulative 328.5 hours Start 2026.07.20 @ 01:54:35 End 2026.07.20 @ 03:50:35 Sessions 3 Manual Loads 0 Difficulty Rogue Special Mode None Game No. 254 Rogue 245 Adventurer 9 Explorer 0 Win Type - Total 4 Types 3/0/0/1/0/0/0/0/0/0 Lore% 87 Gallery% 71 Achievement% 50 Wizard Run 0 Options --------- Layout 1 ASCII 0 Keyboard 0 Movement Numpad Keybinds 0 Fullscreen 1 Font 24/Smallcaps Map View 50x35 Zoom Use 0% Tactical HUD 1 Map Filters NONE Filters NONE Steam 1 RUN: 6962ebdd-d1a2-4b88-929a-9e11314771f6